[Event "Early-Titled-Tuesday-Blitz-July-09-2024"]
[Site "Chess.com"]
[Date "2024.07.09"]
[Round "4"]
[White "GoltsevDmitry2000"]
[Black "FormerProdigy"]
[Result "1/2-1/2"]
[WhiteElo "2739"]
[BlackElo "2977"]
[TimeControl "180+1"]
[EndTime "8:40:27 PDT"]
[Termination "Game drawn - insufficient material"]

1. e4 {[%clk 0:03:00.1]} 1... c6 {[%clk 0:02:59.8]} 2. e5 {[%clk 0:03:00]} 2...
d5 {[%clk 0:03:00.7]} 3. exd6 {[%clk 0:03:00.9]} 3... exd6 {[%clk 0:02:58.3]} 4.
d4 {[%clk 0:03:01.4]} 4... Nf6 {[%clk 0:02:57.2]} 5. Nf3 {[%clk 0:03:01.6]} 5...
Bg4 {[%clk 0:02:54.9]} 6. c4 {[%clk 0:03:01.7]} 6... d5 {[%clk 0:02:53.2]} 7.
Nc3 {[%clk 0:03:01.9]} 7... Bb4 {[%clk 0:02:49.2]} 8. Bd3 {[%clk 0:02:59.5]}
8... dxc4 {[%clk 0:02:45.6]} 9. Bxc4 {[%clk 0:03:00.4]} 9... O-O {[%clk
0:02:37.6]} 10. O-O {[%clk 0:02:59.9]} 10... Bxf3 {[%clk 0:02:34.8]} 11. Qxf3
{[%clk 0:02:59.4]} 11... Qxd4 {[%clk 0:02:35.2]} 12. Bb3 {[%clk 0:02:59.6]}
12... Nbd7 {[%clk 0:02:12.1]} 13. Bg5 {[%clk 0:02:53]} 13... Qg4 {[%clk
0:02:04.2]} 14. Qxg4 {[%clk 0:02:52.9]} 14... Nxg4 {[%clk 0:02:05.1]} 15. Rad1
{[%clk 0:02:51.1]} 15... Nc5 {[%clk 0:02:00.2]} 16. Bc2 {[%clk 0:02:30.2]} 16...
Rfe8 {[%clk 0:01:59.3]} 17. Rd4 {[%clk 0:02:21.5]} 17... Bxc3 {[%clk 0:01:59.6]}
18. bxc3 {[%clk 0:02:22.4]} 18... Ne5 {[%clk 0:01:50.3]} 19. Rfd1 {[%clk
0:02:18.8]} 19... Ne6 {[%clk 0:01:48.5]} 20. Rb4 {[%clk 0:02:05.6]} 20... Nxg5
{[%clk 0:01:48.4]} 21. f4 {[%clk 0:02:05.9]} 21... Ngf3+ {[%clk 0:01:16.1]} 22.
Kf2 {[%clk 0:02:00.3]} 22... Ng4+ {[%clk 0:00:58.8]} 23. Kxf3 {[%clk 0:02:00.1]}
23... h5 {[%clk 0:00:59.4]} 24. Re4 {[%clk 0:01:19.8]} 24... Nxh2+ {[%clk
0:00:46]} 25. Kg3 {[%clk 0:01:14.7]} 25... Rxe4 {[%clk 0:00:45.8]} 26. Bxe4
{[%clk 0:01:14.8]} 26... Ng4 {[%clk 0:00:46.7]} 27. Rd7 {[%clk 0:01:04.6]} 27...
Nf6 {[%clk 0:00:46.4]} 28. Rd4 {[%clk 0:01:00.7]} 28... Re8 {[%clk 0:00:16.8]}
29. Bf3 {[%clk 0:00:59.3]} 29... g6 {[%clk 0:00:17.3]} 30. Rb4 {[%clk 0:00:57]}
30... Re7 {[%clk 0:00:17.6]} 31. a4 {[%clk 0:00:56.8]} 31... Nd5 {[%clk
0:00:13.7]} 32. Bxd5 {[%clk 0:00:51.9]} 32... cxd5 {[%clk 0:00:14.6]} 33. Rb5
{[%clk 0:00:51.1]} 33... Re3+ {[%clk 0:00:14]} 34. Kh4 {[%clk 0:00:49.3]} 34...
Rxc3 {[%clk 0:00:14.9]} 35. Rxb7 {[%clk 0:00:49.4]} 35... Rc4 {[%clk 0:00:13.6]}
36. Rxa7 {[%clk 0:00:48.7]} 36... Rxf4+ {[%clk 0:00:12.8]} 37. Kg5 {[%clk
0:00:49.1]} 37... Rg4+ {[%clk 0:00:10.9]} 38. Kf6 {[%clk 0:00:46.6]} 38... Rxg2
{[%clk 0:00:09.9]} 39. Ra8+ {[%clk 0:00:39.7]} 39... Kh7 {[%clk 0:00:10.1]} 40.
Kxf7 {[%clk 0:00:40.3]} 40... h4 {[%clk 0:00:09.4]} 41. Rb8 {[%clk 0:00:40.2]}
41... Rf2+ {[%clk 0:00:07.7]} 42. Ke6 {[%clk 0:00:40.4]} 42... h3 {[%clk
0:00:08.3]} 43. Rb1 {[%clk 0:00:30]} 43... d4 {[%clk 0:00:08]} 44. Rh1 {[%clk
0:00:26.4]} 44... h2 {[%clk 0:00:08.3]} 45. Ke5 {[%clk 0:00:25.2]} 45... g5
{[%clk 0:00:05.9]} 46. a5 {[%clk 0:00:25.4]} 46... g4 {[%clk 0:00:06.4]} 47. a6
{[%clk 0:00:24]} 47... g3 {[%clk 0:00:07.3]} 48. a7 {[%clk 0:00:24]} 48... Ra2
{[%clk 0:00:07.9]} 49. Kf4 {[%clk 0:00:24.5]} 49... Rxa7 {[%clk 0:00:05.2]} 50.
Kxg3 {[%clk 0:00:24.8]} 50... Kg6 {[%clk 0:00:03.8]} 51. Rxh2 {[%clk 0:00:22.3]}
51... Kf5 {[%clk 0:00:04.4]} 52. Re2 {[%clk 0:00:20.5]} 52... d3 {[%clk
0:00:03.1]} 53. Re1 {[%clk 0:00:16.3]} 53... Rd7 {[%clk 0:00:02.3]} 54. Kf3
{[%clk 0:00:16.1]} 54... d2 {[%clk 0:00:02.8]} 55. Rd1 {[%clk 0:00:16.4]} 55...
Rd4 {[%clk 0:00:03.7]} 56. Ke3 {[%clk 0:00:16.6]} 56... Ke5 {[%clk 0:00:04.4]}
57. Rxd2 {[%clk 0:00:16.8]} 57... Rxd2 {[%clk 0:00:05.3]} 58. Kxd2 {[%clk
0:00:17.4]} 1/2-1/2

[Event "Early-Titled-Tuesday-Blitz-July-09-2024"]
[Site "Chess.com"]
[Date "2024.07.09"]
[Round "4"]
[White "Bilan_Danila"]
[Black "Radislav_Atanasov"]
[Result "1-0"]
[WhiteElo "2592"]
[BlackElo "2368"]
[TimeControl "180+1"]
[EndTime "8:40:27 PDT"]
[Termination "Bilan_Danila won by resignation"]

1. d4 {[%clk 0:02:42.7]} 1... Nf6 {[%clk 0:02:58.5]} 2. Nf3 {[%clk 0:02:43.1]}
2... c5 {[%clk 0:02:57.9]} 3. e3 {[%clk 0:02:42.8]} 3... e6 {[%clk 0:02:56.8]}
4. Bd3 {[%clk 0:02:41.9]} 4... d5 {[%clk 0:02:49.6]} 5. c3 {[%clk 0:02:41.9]}
5... Nc6 {[%clk 0:02:42.5]} 6. Nbd2 {[%clk 0:02:41.2]} 6... Bd6 {[%clk
0:02:42.5]} 7. O-O {[%clk 0:02:39]} 7... O-O {[%clk 0:02:43]} 8. dxc5 {[%clk
0:02:38.1]} 8... Bxc5 {[%clk 0:02:42.9]} 9. e4 {[%clk 0:02:39]} 9... dxe4 {[%clk
0:02:34.8]} 10. Nxe4 {[%clk 0:02:39.9]} 10... Nxe4 {[%clk 0:02:32.9]} 11. Bxe4
{[%clk 0:02:40.8]} 11... f5 {[%clk 0:02:17]} 12. Bc2 {[%clk 0:02:33.5]} 12...
Qf6 {[%clk 0:02:07.4]} 13. Qe2 {[%clk 0:02:18.6]} 13... Bd6 {[%clk 0:01:53.4]}
14. Bg5 {[%clk 0:01:41.1]} 14... Qg6 {[%clk 0:01:51.9]} 15. Rad1 {[%clk
0:01:34.2]} 15... Bc7 {[%clk 0:01:49.1]} 16. Bh4 {[%clk 0:01:06.8]} 16... e5
{[%clk 0:01:45.1]} 17. Bg3 {[%clk 0:00:44.1]} 17... Re8 {[%clk 0:01:19.5]} 18.
Nh4 {[%clk 0:00:30.5]} 18... Qf6 {[%clk 0:01:14.4]} 19. f4 {[%clk 0:00:25.9]}
19... e4 {[%clk 0:01:00.7]} 20. Nf3 {[%clk 0:00:20.1]} 20... Be6 {[%clk
0:00:51]} 21. Ng5 {[%clk 0:00:08.7]} 21... Bxa2 {[%clk 0:00:50.7]} 22. Ra1
{[%clk 0:00:06.5]} 22... Bd5 {[%clk 0:00:40.7]} 23. Rfd1 {[%clk 0:00:06.5]}
23... Rad8 {[%clk 0:00:30.8]} 24. Rxd5 {[%clk 0:00:05.9]} 24... Rxd5 {[%clk
0:00:30.9]} 25. Bb3 {[%clk 0:00:06.8]} 25... Rd8 {[%clk 0:00:31.3]} 26. Rd1
{[%clk 0:00:06.8]} 26... Ne7 {[%clk 0:00:24.8]} 27. Bxd5+ {[%clk 0:00:02.2]}
27... Nxd5 {[%clk 0:00:22.1]} 28. Qc4 {[%clk 0:00:02.3]} 28... Bb6+ {[%clk
0:00:22.3]} 29. Bf2 {[%clk 0:00:02.2]} 29... Qc6 {[%clk 0:00:22]} 30. Qxc6
{[%clk 0:00:02.1]} 30... bxc6 {[%clk 0:00:22.1]} 31. c4 {[%clk 0:00:01.8]} 31...
Bxf2+ {[%clk 0:00:22]} 32. Kxf2 {[%clk 0:00:02.7]} 32... e3+ {[%clk 0:00:21.3]}
33. Ke1 {[%clk 0:00:03]} 33... Rb8 {[%clk 0:00:17]} 34. cxd5 {[%clk 0:00:03.6]}
34... cxd5 {[%clk 0:00:15.9]} 35. Rb1 {[%clk 0:00:04.2]} 35... h6 {[%clk
0:00:16]} 36. Nf3 {[%clk 0:00:04.2]} 36... Rb4 {[%clk 0:00:15.2]} 37. Ke2 {[%clk
0:00:04.5]} 37... Rxf4 {[%clk 0:00:15]} 38. Kxe3 {[%clk 0:00:04.4]} 38... Re4+
{[%clk 0:00:15.9]} 39. Kd3 {[%clk 0:00:04.6]} 39... d4 {[%clk 0:00:15.3]} 40.
Ra1 {[%clk 0:00:04.7]} 40... Re7 {[%clk 0:00:13]} 41. Nxd4 {[%clk 0:00:04.3]}
41... Rb7 {[%clk 0:00:12.9]} 42. Kc3 {[%clk 0:00:04.3]} 42... g6 {[%clk
0:00:12.7]} 43. b4 {[%clk 0:00:03.2]} 43... Kf7 {[%clk 0:00:12.3]} 44. b5 {[%clk
0:00:03.7]} 44... Kf6 {[%clk 0:00:12.4]} 45. Kb4 {[%clk 0:00:03.9]} 45... g5
{[%clk 0:00:11.2]} 46. Nc6 {[%clk 0:00:04.2]} 46... f4 {[%clk 0:00:09]} 47. Rxa7
{[%clk 0:00:04.8]} 47... Rb6 {[%clk 0:00:08.1]} 48. Kc5 {[%clk 0:00:04.9]} 1-0

[Event "Early-Titled-Tuesday-Blitz-July-09-2024"]
[Site "Chess.com"]
[Date "2024.07.09"]
[Round "4"]
[White "Arysya"]
[Black "HansOnTwitch"]
[Result "1-0"]
[WhiteElo "2887"]
[BlackElo "3123"]
[TimeControl "180+1"]
[EndTime "8:40:30 PDT"]
[Termination "Arysya won on time"]

1. e4 {[%clk 0:03:00.9]} 1... c5 {[%clk 0:02:39.2]} 2. Nf3 {[%clk 0:03:00.8]}
2... d6 {[%clk 0:02:39.3]} 3. Bb5+ {[%clk 0:03:00]} 3... Nd7 {[%clk 0:02:39.3]}
4. a4 {[%clk 0:03:00.1]} 4... Nf6 {[%clk 0:02:38.5]} 5. Nc3 {[%clk 0:02:59.9]}
5... a6 {[%clk 0:02:38.2]} 6. Be2 {[%clk 0:02:59.9]} 6... e6 {[%clk 0:02:36.1]}
7. a5 {[%clk 0:02:59.2]} 7... b5 {[%clk 0:02:19.2]} 8. axb6 {[%clk 0:02:58.6]}
8... Qxb6 {[%clk 0:02:19.4]} 9. O-O {[%clk 0:02:57.6]} 9... Bb7 {[%clk
0:02:19.6]} 10. d3 {[%clk 0:02:54.1]} 10... Be7 {[%clk 0:02:19.7]} 11. Nd2
{[%clk 0:02:51.6]} 11... d5 {[%clk 0:02:11.3]} 12. Kh1 {[%clk 0:02:47]} 12...
O-O {[%clk 0:02:10.2]} 13. f4 {[%clk 0:02:44.1]} 13... Bc6 {[%clk 0:02:07.3]}
14. Bf3 {[%clk 0:02:25.8]} 14... Qb7 {[%clk 0:02:06.6]} 15. Nb3 {[%clk 0:02:16]}
15... Bd8 {[%clk 0:01:53.7]} 16. e5 {[%clk 0:02:07.5]} 16... Ne8 {[%clk
0:01:53.7]} 17. Na5 {[%clk 0:02:02.3]} 17... Bxa5 {[%clk 0:01:53]} 18. Rxa5
{[%clk 0:02:03.2]} 18... Nc7 {[%clk 0:01:44.7]} 19. Qe1 {[%clk 0:01:53.8]} 19...
Nb5 {[%clk 0:01:31.4]} 20. Nxb5 {[%clk 0:01:50]} 20... axb5 {[%clk 0:01:32.3]}
21. Rxa8 {[%clk 0:01:44.2]} 21... Qxa8 {[%clk 0:01:33.2]} 22. f5 {[%clk
0:01:31.8]} 22... d4 {[%clk 0:01:26.3]} 23. Qg3 {[%clk 0:01:20.7]} 23... Bxf3
{[%clk 0:01:19.8]} 24. gxf3 {[%clk 0:01:09.2]} 24... exf5 {[%clk 0:01:16.1]} 25.
Bh6 {[%clk 0:01:08]} 25... g6 {[%clk 0:01:16.6]} 26. e6 {[%clk 0:00:41.9]} 26...
fxe6 {[%clk 0:01:15.8]} 27. Bxf8 {[%clk 0:00:38.7]} 27... Nxf8 {[%clk
0:01:16.7]} 28. Qe5 {[%clk 0:00:37.1]} 28... Qc6 {[%clk 0:01:15.2]} 29. Qb8
{[%clk 0:00:32.9]} 29... Kg7 {[%clk 0:01:11.5]} 30. Kg2 {[%clk 0:00:29.1]} 30...
Nd7 {[%clk 0:01:11.2]} 31. Qe8 {[%clk 0:00:22.9]} 31... Qd6 {[%clk 0:01:04.8]}
32. Qd8 {[%clk 0:00:21.1]} 32... Qd5 {[%clk 0:00:50.7]} 33. Ra1 {[%clk
0:00:19.3]} 33... Qb7 {[%clk 0:00:22]} 34. Qe7+ {[%clk 0:00:17.7]} 34... Kh6
{[%clk 0:00:21.9]} 35. Kf2 {[%clk 0:00:17.2]} 35... c4 {[%clk 0:00:15.7]} 36. h4
{[%clk 0:00:08.2]} 36... cxd3 {[%clk 0:00:14.3]} 37. h5 {[%clk 0:00:08.6]} 37...
Qc7 {[%clk 0:00:11.1]} 38. Rg1 {[%clk 0:00:03.1]} 38... Qxc2+ {[%clk 0:00:05.6]}
39. Kg3 {[%clk 0:00:03.4]} 39... Qc7+ {[%clk 0:00:01.5]} 40. Kh3 {[%clk
0:00:03]} 40... Qf4 {[%clk 0:00:01.5]} 41. Rg3 {[%clk 0:00:01.9]} 41... d2
{[%clk 0:00:01.4]} 42. hxg6 {[%clk 0:00:02.2]} 42... Qxg3+ {[%clk 0:00:01.3]}
43. Kxg3 {[%clk 0:00:02]} 43... hxg6 {[%clk 0:00:01.9]} 44. Qh4+ {[%clk
0:00:01.6]} 44... Kg7 {[%clk 0:00:02.4]} 45. Qe7+ {[%clk 0:00:02.2]} 45... Kh6
{[%clk 0:00:02.7]} 46. Qh4+ {[%clk 0:00:02.1]} 46... Kg7 {[%clk 0:00:03.4]} 47.
Qxd4+ {[%clk 0:00:02.9]} 47... Nf6 {[%clk 0:00:02]} 48. Qxd2 {[%clk 0:00:02.6]}
48... Nd5 {[%clk 0:00:02.9]} 49. Qe2 {[%clk 0:00:01.6]} 49... b4 {[%clk
0:00:01.8]} 50. Qxe6 {[%clk 0:00:01.8]} 1-0

[Event "Early-Titled-Tuesday-Blitz-July-09-2024"]
[Site "Chess.com"]
[Date "2024.07.09"]
[Round "4"]
[White "jbking07"]
[Black "yonaltimur"]
[Result "1/2-1/2"]
[WhiteElo "2474"]
[BlackElo "2251"]
[TimeControl "180+1"]
[EndTime "8:40:32 PDT"]
[Termination "Game drawn by repetition"]

1. e4 {[%clk 0:03:00.9]} 1... c5 {[%clk 0:02:54]} 2. Nf3 {[%clk 0:03:00.9]} 2...
d6 {[%clk 0:02:54.4]} 3. Bb5+ {[%clk 0:03:00.7]} 3... Bd7 {[%clk 0:02:54.1]} 4.
Bxd7+ {[%clk 0:03:00.9]} 4... Qxd7 {[%clk 0:02:55]} 5. c4 {[%clk 0:03:01.5]}
5... Nc6 {[%clk 0:02:55.6]} 6. Nc3 {[%clk 0:03:00.9]} 6... g6 {[%clk 0:02:51.6]}
7. d4 {[%clk 0:02:56.5]} 7... cxd4 {[%clk 0:02:51.3]} 8. Nxd4 {[%clk 0:02:57.4]}
8... Bg7 {[%clk 0:02:52]} 9. Be3 {[%clk 0:02:49.8]} 9... Rc8 {[%clk 0:02:51.7]}
10. O-O {[%clk 0:02:45.5]} 10... Nf6 {[%clk 0:02:46.5]} 11. h3 {[%clk
0:02:39.4]} 11... O-O {[%clk 0:02:26.4]} 12. Rc1 {[%clk 0:02:37.5]} 12... Nxd4
{[%clk 0:02:20.6]} 13. Qxd4 {[%clk 0:02:14.4]} 13... Ng4 {[%clk 0:02:10.3]} 14.
Qd3 {[%clk 0:02:13.6]} 14... Nxe3 {[%clk 0:02:09.8]} 15. fxe3 {[%clk 0:02:14.5]}
15... Bxc3 {[%clk 0:02:01.6]} 16. Rxc3 {[%clk 0:02:13.8]} 16... Rc5 {[%clk
0:02:01.6]} 17. b4 {[%clk 0:02:06.3]} 17... Re5 {[%clk 0:02:01.5]} 18. c5 {[%clk
0:02:00.4]} 18... Qe6 {[%clk 0:02:01.4]} 19. cxd6 {[%clk 0:01:55.9]} 19... exd6
{[%clk 0:02:02.3]} 20. Rd1 {[%clk 0:01:47]} 20... Rxe4 {[%clk 0:01:59.2]} 21.
Qxd6 {[%clk 0:01:44.7]} 21... Qxa2 {[%clk 0:01:45]} 22. Rc7 {[%clk 0:01:31.8]}
22... Rxe3 {[%clk 0:01:25.5]} 23. Rxb7 {[%clk 0:01:26.2]} 23... Re2 {[%clk
0:01:21.7]} 24. Qd5 {[%clk 0:01:22.9]} 24... Re1+ {[%clk 0:01:17.1]} 25. Kh2
{[%clk 0:01:19.3]} 25... Qxd5 {[%clk 0:00:59.7]} 26. Rxd5 {[%clk 0:01:19]} 26...
Ra1 {[%clk 0:01:00.3]} 27. Rdd7 {[%clk 0:01:09.9]} 27... a6 {[%clk 0:00:59.2]}
28. Ra7 {[%clk 0:01:08.3]} 28... Ra4 {[%clk 0:00:50.1]} 29. Rdb7 {[%clk
0:01:06.2]} 29... Kg7 {[%clk 0:00:48.2]} 30. Rb6 {[%clk 0:01:05.4]} 30... h5
{[%clk 0:00:47.7]} 31. Raxa6 {[%clk 0:01:04.5]} 31... Rxa6 {[%clk 0:00:48.6]}
32. Rxa6 {[%clk 0:01:05.4]} 32... Rb8 {[%clk 0:00:49]} 33. Ra4 {[%clk
0:01:05.2]} 33... h4 {[%clk 0:00:40.2]} 34. b5 {[%clk 0:01:01.3]} 34... Rxb5
{[%clk 0:00:39.6]} 35. Rxh4 {[%clk 0:01:01.5]} 35... Rb6 {[%clk 0:00:39.9]} 36.
Rc4 {[%clk 0:01:01.3]} 36... Rb5 {[%clk 0:00:40.3]} 37. h4 {[%clk 0:01:01.5]}
37... Rb6 {[%clk 0:00:40.5]} 38. Kh3 {[%clk 0:01:01.6]} 38... f5 {[%clk
0:00:28.1]} 39. g3 {[%clk 0:01:01.5]} 39... Rb3 {[%clk 0:00:26.1]} 40. Ra4
{[%clk 0:01:01.3]} 40... Kh6 {[%clk 0:00:25.5]} 41. Ra6 {[%clk 0:01:00.8]} 41...
Kg7 {[%clk 0:00:24.8]} 42. Kg2 {[%clk 0:00:58.9]} 42... Kh6 {[%clk 0:00:25.2]}
43. Re6 {[%clk 0:00:58.1]} 43... Kg7 {[%clk 0:00:25.3]} 44. Kf2 {[%clk
0:00:57.1]} 44... Kh6 {[%clk 0:00:25.8]} 45. Rd6 {[%clk 0:00:45.5]} 45... Rb2+
{[%clk 0:00:21.6]} 46. Ke3 {[%clk 0:00:43.2]} 46... Rb3+ {[%clk 0:00:21.9]} 47.
Kf4 {[%clk 0:00:37.6]} 47... Rb4+ {[%clk 0:00:20.4]} 48. Ke3 {[%clk 0:00:27.4]}
48... Rg4 {[%clk 0:00:19.5]} 49. Kf3 {[%clk 0:00:24.2]} 49... Rb4 {[%clk
0:00:19.2]} 50. Re6 {[%clk 0:00:20.3]} 50... Rb3+ {[%clk 0:00:19.5]} 51. Re3
{[%clk 0:00:18]} 51... Rxe3+ {[%clk 0:00:19.3]} 52. Kxe3 {[%clk 0:00:18.9]}
52... g5 {[%clk 0:00:20.2]} 53. hxg5+ {[%clk 0:00:12.7]} 53... Kxg5 {[%clk
0:00:21.1]} 54. Kf3 {[%clk 0:00:11.8]} 54... Kg6 {[%clk 0:00:21.5]} 55. Ke3
{[%clk 0:00:09.7]} 55... Kf6 {[%clk 0:00:21.7]} 56. Kf4 {[%clk 0:00:09.3]} 56...
Kg6 {[%clk 0:00:21.9]} 57. Ke5 {[%clk 0:00:09.1]} 57... Kg5 {[%clk 0:00:22.3]}
58. Ke6 {[%clk 0:00:07.9]} 58... Kg4 {[%clk 0:00:22.2]} 59. Ke5 {[%clk 0:00:08]}
59... Kg5 {[%clk 0:00:22]} 60. Ke6 {[%clk 0:00:07.3]} 60... Kg6 {[%clk
0:00:22.1]} 61. Ke5 {[%clk 0:00:07.4]} 61... Kg5 {[%clk 0:00:22.6]} 1/2-1/2

[Event "Early-Titled-Tuesday-Blitz-July-09-2024"]
[Site "Chess.com"]
[Date "2024.07.09"]
[Round "4"]
[White "profedechess93"]
[Black "SpeedofLight0"]
[Result "0-1"]
[WhiteElo "2628"]
[BlackElo "3159"]
[TimeControl "180+1"]
[EndTime "8:40:33 PDT"]
[Termination "SpeedofLight0 won on time"]

1. e4 {[%clk 0:03:00.9]} 1... c6 {[%clk 0:02:59.4]} 2. d4 {[%clk 0:03:00.3]}
2... d5 {[%clk 0:03:00.3]} 3. Nc3 {[%clk 0:02:59.5]} 3... dxe4 {[%clk
0:02:59.8]} 4. Nxe4 {[%clk 0:03:00.4]} 4... Bf5 {[%clk 0:03:00]} 5. Ng3 {[%clk
0:03:00.4]} 5... Bg6 {[%clk 0:03:00.6]} 6. h4 {[%clk 0:03:00.8]} 6... h6 {[%clk
0:03:00.8]} 7. h5 {[%clk 0:03:01.4]} 7... Bh7 {[%clk 0:03:00.8]} 8. Nf3 {[%clk
0:03:01.9]} 8... Nd7 {[%clk 0:03:00.6]} 9. Bd3 {[%clk 0:03:01.7]} 9... Bxd3
{[%clk 0:03:01.2]} 10. Qxd3 {[%clk 0:03:01.2]} 10... e6 {[%clk 0:03:02.1]} 11.
Bd2 {[%clk 0:03:00.8]} 11... Ngf6 {[%clk 0:03:01.7]} 12. O-O-O {[%clk
0:03:00.3]} 12... Be7 {[%clk 0:03:02.5]} 13. Qe2 {[%clk 0:02:58.5]} 13... a5
{[%clk 0:02:51.1]} 14. Rhe1 {[%clk 0:02:57]} 14... O-O {[%clk 0:02:48.7]} 15.
Ne5 {[%clk 0:02:52]} 15... a4 {[%clk 0:02:36]} 16. a3 {[%clk 0:02:25.1]} 16...
Qb6 {[%clk 0:02:14.5]} 17. Ng6 {[%clk 0:02:02.5]} 17... Rfe8 {[%clk 0:02:12.4]}
18. Nxe7+ {[%clk 0:02:01.5]} 18... Rxe7 {[%clk 0:02:13.3]} 19. Nf5 {[%clk
0:02:00.3]} 19... Ree8 {[%clk 0:02:13.6]} 20. Nd6 {[%clk 0:02:00.3]} 20... Rf8
{[%clk 0:02:09.3]} 21. g4 {[%clk 0:01:13.2]} 21... Qxd4 {[%clk 0:01:30.6]} 22.
Bxh6 {[%clk 0:01:10.4]} 22... Qxg4 {[%clk 0:01:28.2]} 23. f3 {[%clk 0:01:10.4]}
23... Qxh5 {[%clk 0:00:30.6]} 24. Bxg7 {[%clk 0:01:08.1]} 24... Kxg7 {[%clk
0:00:24.9]} 25. Rg1+ {[%clk 0:01:07.4]} 25... Kh7 {[%clk 0:00:21.1]} 26. Rh1
{[%clk 0:01:07.1]} 26... Ra5 {[%clk 0:00:20.3]} 27. Qd3+ {[%clk 0:01:00.7]}
27... Kg7 {[%clk 0:00:17.1]} 28. Rxh5 {[%clk 0:00:53.2]} 28... Rxh5 {[%clk
0:00:18]} 29. Rg1+ {[%clk 0:00:51.4]} 29... Kh8 {[%clk 0:00:18.3]} 30. Nxb7
{[%clk 0:00:45.3]} 30... Rg8 {[%clk 0:00:18.2]} 31. Rxg8+ {[%clk 0:00:37.1]}
31... Kxg8 {[%clk 0:00:19.1]} 32. Nd6 {[%clk 0:00:33.7]} 32... Rd5 {[%clk
0:00:17.9]} 33. Qc4 {[%clk 0:00:19.7]} 33... Rxd6 {[%clk 0:00:17.8]} 34. Qxa4
{[%clk 0:00:20.3]} 34... Rd5 {[%clk 0:00:16.8]} 35. Qa8+ {[%clk 0:00:19.6]}
35... Kg7 {[%clk 0:00:16.9]} 36. Qxc6 {[%clk 0:00:20.2]} 36... Ne5 {[%clk
0:00:17.3]} 37. Qb7 {[%clk 0:00:16.8]} 37... Nxf3 {[%clk 0:00:16.8]} 38. a4
{[%clk 0:00:16.3]} 38... Nd4 {[%clk 0:00:17.2]} 39. b4 {[%clk 0:00:13.8]} 39...
Ne4 {[%clk 0:00:14.1]} 40. a5 {[%clk 0:00:13]} 40... Nc3 {[%clk 0:00:13.2]} 41.
a6 {[%clk 0:00:11.8]} 41... Ndb5 {[%clk 0:00:12.3]} 42. Kb2 {[%clk 0:00:06.8]}
42... Rd1 {[%clk 0:00:11.8]} 43. Qg2+ {[%clk 0:00:06.5]} 43... Kf6 {[%clk
0:00:10.8]} 44. Qf3+ {[%clk 0:00:06.6]} 44... Ke7 {[%clk 0:00:10.5]} 45. Qb7+
{[%clk 0:00:06]} 45... Kd6 {[%clk 0:00:10]} 46. Qb6+ {[%clk 0:00:05.4]} 46...
Kd5 {[%clk 0:00:09.5]} 47. Qc5+ {[%clk 0:00:05.6]} 47... Ke4 {[%clk 0:00:10.1]}
48. Qc4+ {[%clk 0:00:05.6]} 48... Ke3 {[%clk 0:00:09.9]} 49. Qc5+ {[%clk
0:00:05.3]} 49... Kf3 {[%clk 0:00:08.7]} 50. Kb3 {[%clk 0:00:04.5]} 50... Ra1
{[%clk 0:00:07.1]} 51. Qc6+ {[%clk 0:00:03.5]} 51... Kg3 {[%clk 0:00:07.7]} 52.
Qd7 {[%clk 0:00:01]} 52... Rxa6 {[%clk 0:00:05.3]} 53. Qxf7 {[%clk 0:00:01.6]}
53... Ra3+ {[%clk 0:00:05.7]} 54. Kc4 {[%clk 0:00:01.1]} 54... Nd6+ {[%clk
0:00:05.9]} 0-1